[Event "14th Margaryan Memorial-GM 2024"]
[Site "Yerevan"]
[Date "2024.01.11"]
[Round "4.3"]
[White "Shuvalova, Polina"]
[Black "Sorensen, Hampus"]
[Result "1-0"]
[ECO "C54"]
[WhiteElo "2475"]
[BlackElo "2458"]
[Annotator "TA"]
[PlyCount "97"]
[EventDate "2024.01.08"]
[EventType "tourn"]
[EventCountry "ARM"]
[SourceTitle "playchess.com"]
[Source "ChessBase"]
[SourceQuality "1"]
[TimeControl "40/5400+30:1800+30"]

{[%evp 10,97,23,17,15,5,12,6,13,8,4,1,12,16,21,0,10,0,11,0,17,25,31,5,20,0,0,8,4,0,0,-30,32,25,25,3,15,0,0,0,23,-129,20,0,0,0,12,24,79,98,118,83,187,170,266,274,266,259,465,453,606,444,433,443,439,431,432,420,394,263,476,492,718,396,396,263,498,471,472,377,472,359,355,320,476,466,460,451,29983,29983]} 1. e4 {[%emt 0:00:03]} e5 {[%emt 0:00:20]} 2. Nf3 {[%emt 0:00:06]} Nc6 {[%emt 0:00:10]} 3. Bc4 {[%emt 0:00:05]} Bc5 {[%emt 0:00:24]} 4. O-O {[%emt 0:00:25]} Nf6 {[%emt 0:00:13]} 5. d3 {[%emt 0:00:04]} d6 {[%emt 0:00:28]} 6. c3 {[%emt 0:00:13]} a5 {[%emt 0:00:29] is the new trend. C54: Giuoco Piano: 4 c3 Nf6, main lines with 5 d4 and 5 d3.} 7. h3 {[%emt 0:00:36]} O-O {[%emt 0:00:29]} 8. Re1 {[%emt 0:00:31]} h6 {[%emt 0:00:26] The position is equal.} 9. Nbd2 {[%emt 0:01:46]} Be6 {[%emt 0:00:50]} 10. Bb5 {[%emt 0:00:06]} Ba7 {[%emt 0:01:07]} 11. Nf1 {[%emt 0:00:47]} Ne7 {[%emt 0:00:42]} 12. d4 {[%emt 0:00:39]} exd4 {[%emt 0:09:34]} 13. Nxd4 {[%emt 0:04:54]} Bd7 {[%emt 0:05:29]} 14. Bd3 {[%emt 0:01:49] [#]} Nc6 $146 {[%emt 0:05:19]} ({Predecessor:} 14... Ng6 15. Ng3 Re8 16. a4 c6 17. Bd2 d5 18. exd5 Rxe1+ 19. Qxe1 Nxd5 20. Be4 Bxd4 21. cxd4 {½-½ Tsydypov,Z (2550)-Esipenko,A (2694) Wch Rapid Almaty 2022 (6)}) 15. Bc2 {[%emt 0:01:25]} Re8 {[%emt 0:06:09]} 16. Bf4 {[%emt 0:03:20]} d5 {[%emt 0:06:46]} 17. e5 {[%emt 0:06:03] Black must now prevent Nxc6.} (17. Nb5 $5 {[%cal Rb5c7]} Bb6 18. exd5 Rxe1 19. Qxe1 Nxd5 20. Bg3 $11) 17... Ne4 {[%emt 0:01:07]} 18. f3 {[%emt 0:08:27]} Ng5 {[%emt 0:05:41][%cal Od7h3]} 19. Kh2 {[%emt 0:04:19]} Nxd4 {[%emt 0:13:45]} 20. cxd4 {[%emt 0:00:05]} Ne6 {[%emt 0:00:29]} (20... c5 $11) 21. Be3 $14 {[%emt 0:00:20]} Qh4 {[%emt 0:00:28][%cal Re6d4]} 22. g3 {[%emt 0:04:19]} Qe7 {[%emt 0:01:44]} 23. Qd3 {[%emt 0:05:26] Qh7+ would kill now.} g6 {[%emt 0:03:00]} 24. Rad1 {[%emt 0:00:23]} Qb4 {[%emt 0:04:24]} 25. a3 $2 {[%emt 0:09:41]} (25. Qc3 $11) 25... Qb5 {[%emt 0:02:43]} (25... Qxb2 $17 {[%cal Oe6d4] Threatens to win with ...Nxd4!} 26. Rb1 Qa2) 26. Qc3 {[%emt 0:02:09]} Rac8 {[%emt 0:09:49]} 27. b4 {[%emt 0:00:51]} ({But not} 27. Bxh6 c5 28. Bb1 Nxd4 $15) 27... axb4 {[%emt 0:03:32]} 28. axb4 {[%emt 0:00:20]} Qc6 {[%emt 0:02:25]} (28... Ra8 $11 {keeps the balance.}) 29. Qb2 $1 $16 {[%emt 0:02:46] White leaves nothing to chance now.} Ra8 {[%emt 0:00:27]} 30. g4 {[%emt 0:04:05]} Bb6 {[%emt 0:02:14] [#]} (30... Qc4 $16 31. Nd2 Qc6) 31. Bd3 $1 $18 {[%emt 0:01:18]} Bc8 {[%emt 0:07:39] [#]} (31... Ng5 {might work better.}) 32. Ng3 $1 {[%emt 0:01:21]} Ng5 {[%emt 0:02:29]} 33. Kg2 {[%emt 0:01:35][%cal Bh2g2,Bg2h3,Bh3g2][%mdl 32]} Qd7 $2 {[%emt 0:00:44]} (33... Rf8 34. f4 Ne4 35. Bxe4 (35. Rc1 Qe8 $18) 35... dxe4) 34. f4 {[%emt 0:03:24] Active counter play!} Nxh3 {[%emt 0:00:40]} 35. Be2 {[%emt 0:02:04]} h5 {[%emt 0:01:00]} 36. Kxh3 {[%emt 0:07:16]} hxg4+ {[%emt 0:00:05]} 37. Kg2 {[%emt 0:00:02]} f5 {[%emt 0:00:03]} 38. Rh1 {[%emt 0:00:34]} Kg7 {[%emt 0:01:00]} 39. Bd3 {[%emt 0:08:04][%cal Od3f5] Strongly threatening Bxf5!} Qe7 $2 {[%emt 0:00:30]} (39... Qf7 40. Ne2 Bd7) 40. Bf2 {[%emt 0:00:00]} c6 {[%emt 0:00:00]} (40... Qf7 $142 41. Ne2 c6) 41. Ne2 {[%emt 0:30:42]} Bd8 {[%emt 0:16:24]} 42. Rh4 {[%emt 0:01:44] Rdh1 is the strong threat.} Rh8 $2 {[%emt 0:04:34]} (42... Qf7 {is a better defense.} 43. Rh2 Rh8 44. Rxh8 Kxh8 45. Rh1+ Kg7) 43. Rdh1 {[%emt 0:00:05]} Rxh4 {[%emt 0:00:18]} 44. Bxh4 {[%emt 0:00:06]} Qf8 {[%emt 0:00:21]} 45. Bxd8 {[%emt 0:02:01]} Qxd8 {[%emt 0:00:09]} 46. b5 {[%emt 0:01:11]} Qa5 {[%emt 0:02:06]} (46... Qe7 {was worth a try.} 47. bxc6 bxc6) 47. Qc1 {[%emt 0:03:00] Hoping for Qg1.} Qa3 {[%emt 0:02:16]} 48. Qe3 {[%emt 0:00:30] And now Qg3 would win.} Bd7 {[%emt 0:02:14]} (48... Be6 $18 49. bxc6 bxc6) 49. e6 {[%emt 0:00:54] Weighted Error Value: White=0.34/Black=0.63} 1-0

[Event "14th Margaryan Memorial-GM 2024"]
[Site "Yerevan"]
[Date "2024.01.11"]
[Round "4.4"]
[White "Movahed, Sina"]
[Black "Ohanyan, Emin"]
[Result "1-0"]
[ECO "B45"]
[WhiteElo "2450"]
[BlackElo "2456"]
[Annotator "RC"]
[PlyCount "107"]
[EventDate "2024.01.08"]
[EventType "tourn"]
[EventCountry "ARM"]
[SourceTitle "playchess.com"]
[Source "ChessBase"]
[SourceQuality "1"]
[TimeControl "40/5400+30:1800+30"]

1. e4 {[%emt 0:00:07]} c5 {[%emt 0:01:04]} 2. Nf3 {[%emt 0:00:06]} e6 {[%emt 0:00:01]} 3. d4 {[%emt 0:00:07]} cxd4 {[%emt 0:00:02]} 4. Nxd4 {[%emt 0:00:07]} Nf6 {[%emt 0:00:01]} 5. Nc3 {[%emt 0:00:09]} Nc6 {[%emt 0:00:02]} 6. Nxc6 {[%emt 0:00:06]} bxc6 {[%emt 0:00:03]} 7. e5 {[%emt 0:00:06]} Nd5 {[%emt 0:00:04]} 8. Ne4 {[%emt 0:00:01]} Qc7 {[%emt 0:00:04]} 9. f4 {[%emt 0:00:06]} Qb6 {[%emt 0:00:04]} 10. c4 {[%emt 0:00:04]} Ne3 {[%emt 0:00:02]} 11. Qd3 {[%emt 0:00:04]} Bb4+ {[%emt 0:00:03]} 12. Bd2 {[%emt 0:00:06]} Ba6 {[%emt 0:01:05]} 13. b3 {[%emt 0:00:08]} O-O {[%emt 0:00:31]} 14. Nc3 {[%emt 0:00:10]} Nd5 {[%emt 0:00:25]} 15. O-O-O {[%emt 0:00:23]} Qa5 {[%emt 0:00:43]} 16. Kb2 {[%emt 0:00:19]} f6 {[%emt 0:00:41]} 17. Qg3 {[%emt 0:01:14]} Nxc3 {[%emt 0:00:31]} 18. Bxc3 {[%emt 0:00:09]} Qa3+ {[%emt 0:00:03]} 19. Kb1 {[%emt 0:02:53]} Bxc3 {[%emt 0:01:18]} 20. Qxc3 {[%emt 0:00:06]} Bc8 {[%emt 0:00:12]} 21. Bd3 {[%emt 0:08:14]} a5 {[%emt 0:01:12]} 22. Rhf1 {[%emt 0:03:42]} a4 {[%emt 0:09:50]} 23. Qb2 {[%emt 0:13:29]} axb3 {[%emt 0:04:15]} 24. axb3 {[%emt 0:00:15]} Qb4 {[%emt 0:05:27]} 25. Bc2 {[%emt 0:13:49]} Ra5 {[%emt 0:10:33]} 26. Rf3 {[%emt 0:08:25]} fxe5 {[%emt 0:26:35]} 27. fxe5 {[%emt 0:00:10]} Rxf3 {[%emt 0:00:06]} 28. gxf3 {[%emt 0:00:08]} Ra7 {[%emt 0:06:32]} 29. f4 {[%emt 0:02:23]} g6 {[%emt 0:03:43]} 30. h4 {[%emt 0:20:52]} Ba6 {[%emt 0:02:04]} 31. h5 {[%emt 0:04:40]} Rb7 {[%emt 0:00:54]} 32. hxg6 {[%emt 0:00:11]} hxg6 {[%emt 0:01:46]} 33. Qd4 {[%emt 0:01:17]} Kf8 {[%emt 0:22:04]} 34. Qe3 {[%emt 0:16:11]} Ke8 {[%emt 0:02:17]} 35. Kc1 {[%emt 0:02:22]} Kd8 {[%emt 0:00:49]} 36. Qd4 {[%emt 0:00:42]} Kc8 {[%emt 0:01:41]} 37. Rh1 {[%emt 0:01:41]} Qf8 {[%emt 0:01:23]} 38. Kd1 {[%emt 0:02:05]} Kb8 {[%emt 0:00:49]} 39. Rh2 {[%emt 0:01:07]} c5 {[%emt 0:00:23]} 40. Qd2 {[%emt 0:00:00]} Ka7 {[%emt 0:00:00]} 41. Be4 {[%emt 0:18:01]} d5 {[%emt 0:17:23]} 42. cxd5 {[%emt 0:07:13]} Rb4 {[%emt 0:00:43]} 43. Qe3 {[%emt 0:00:17]} exd5 {[%emt 0:00:56]} 44. Bxd5 {[%emt 0:00:10]} Rxf4 {[%emt 0:00:53]} 45. Kc1 {[%emt 0:00:44]} Kb6 {[%emt 0:02:09]} 46. Kb2 {[%emt 0:00:27]} Bb5 {[%emt 0:10:59]} 47. Rd2 {[%emt 0:01:58]} g5 {[%emt 0:00:51]} 48. Be4 {[%emt 0:00:13]} Bc6 {[%emt 0:00:33]} 49. Bxc6 {[%emt 0:00:54]} Kxc6 {[%emt 0:00:01]} 50. Rd6+ {[%emt 0:01:19]} Kb7 {[%emt 0:00:42]} 51. Qxc5 {[%emt 0:01:00]} Rf2+ {[%emt 0:00:03]} 52. Kc3 {[%emt 0:01:48]} Qf3+ {[%emt 0:01:07]} 53. Kb4 {[%emt 0:00:13]} Qe4+ {[%emt 0:00:38]} 54. Ka3 {[%emt 0:00:10]} 1-0

[Event "14th Margaryan Memorial-GM 2024"]
[Site "Yerevan"]
[Date "2024.01.11"]
[Round "4.5"]
[White "Shahinyan, David"]
[Black "Agasarov, Benik"]
[Result "1/2-1/2"]
[ECO "C44"]
[WhiteElo "2436"]
[BlackElo "2340"]
[Annotator "RC"]
[PlyCount "73"]
[EventDate "2024.01.08"]
[EventType "tourn"]
[EventCountry "ARM"]
[SourceTitle "playchess.com"]
[Source "ChessBase"]
[SourceQuality "1"]
[TimeControl "40/5400+30:1800+30"]

1. e4 {[%emt 0:01:54]} e5 {[%emt 0:00:04]} 2. Nf3 {[%emt 0:00:35]} Nf6 {[%emt 0:00:07]} 3. d3 {[%emt 0:02:34]} Nc6 {[%emt 0:00:25]} 4. Be2 {[%emt 0:00:31]} d5 {[%emt 0:00:08]} 5. Nbd2 {[%emt 0:00:07]} Bd6 {[%emt 0:00:07]} 6. O-O {[%emt 0:00:16]} O-O {[%emt 0:00:07]} 7. c3 {[%emt 0:00:03]} h6 {[%emt 0:00:37]} 8. Re1 {[%emt 0:01:46]} Re8 {[%emt 0:00:32]} 9. Bf1 {[%emt 0:02:00]} a5 {[%emt 0:05:53]} 10. Qc2 {[%emt 0:01:00]} Be6 {[%emt 0:02:34]} 11. b3 {[%emt 0:01:50]} Bc5 {[%emt 0:12:01]} 12. h3 {[%emt 0:00:41]} d4 {[%emt 0:02:02]} 13. Bb2 {[%emt 0:06:19]} dxc3 {[%emt 0:03:40]} 14. Bxc3 {[%emt 0:01:22]} Qd6 {[%emt 0:00:48]} 15. Rad1 {[%emt 0:06:51]} Nd7 {[%emt 0:07:15]} 16. Nc4 {[%emt 0:13:05]} Bxc4 {[%emt 0:00:27]} 17. dxc4 {[%emt 0:00:03]} Nd4 {[%emt 0:00:37]} 18. Nxd4 {[%emt 0:00:27]} exd4 {[%emt 0:07:20]} 19. Bb2 {[%emt 0:00:32]} Ne5 {[%emt 0:01:10]} 20. Qc1 {[%emt 0:02:27]} a4 {[%emt 0:04:50]} 21. f4 {[%emt 0:05:51]} Nc6 {[%emt 0:03:13]} 22. e5 {[%emt 0:02:30]} Qd7 {[%emt 0:01:56]} 23. Qb1 {[%emt 0:01:31]} axb3 {[%emt 0:03:01]} 24. axb3 {[%emt 0:00:29]} Nb4 {[%emt 0:04:27]} 25. Kh1 {[%emt 0:03:36]} Ra2 {[%emt 0:01:42]} 26. Rd2 {[%emt 0:05:30]} Rd8 {[%emt 0:06:37]} 27. Red1 {[%emt 0:05:28]} g6 {[%emt 0:02:46]} 28. Bd3 {[%emt 0:05:28]} Nxd3 {[%emt 0:04:14]} 29. Qxa2 {[%emt 0:02:04]} Nxf4 {[%emt 0:00:13]} 30. Rxd4 {[%emt 0:00:14]} Bxd4 {[%emt 0:00:05]} 31. Rxd4 {[%emt 0:00:12]} Qxd4 {[%emt 0:01:16]} 32. Bxd4 {[%emt 0:00:10]} Rxd4 {[%emt 0:00:04]} 33. Qa8+ {[%emt 0:00:33]} Kg7 {[%emt 0:00:05]} 34. Qxb7 {[%emt 0:00:59]} c5 {[%emt 0:00:05]} 35. Qb5 {[%emt 0:04:50]} Ne6 {[%emt 0:02:56]} 36. Kg1 {[%emt 0:03:36]} Rd2 {[%emt 0:01:37]} 37. Kf1 {[%emt 0:21:36]} 1/2-1/2

[Event "14th Margaryan Memorial-GM 2024"]
[Site "Yerevan"]
[Date "2024.01.12"]
[Round "5.1"]
[White "Agasarov, Benik"]
[Black "Babujian, Levon"]
[Result "1-0"]
[ECO "C89"]
[WhiteElo "2340"]
[BlackElo "2346"]
[Annotator "RC"]
[PlyCount "105"]
[EventDate "2024.01.08"]
[EventType "tourn"]
[EventCountry "ARM"]
[SourceTitle "playchess.com"]
[Source "ChessBase"]
[SourceQuality "1"]
[TimeControl "40/5400+30:1800+30"]

1. e4 {[%emt 0:00:03]} e5 {[%emt 0:03:59]} 2. Nf3 {[%emt 0:00:05]} Nc6 {[%emt 0:00:05]} 3. Bb5 {[%emt 0:00:05]} a6 {[%emt 0:00:06]} 4. Ba4 {[%emt 0:00:04]} Nf6 {[%emt 0:00:05]} 5. O-O {[%emt 0:00:06]} Be7 {[%emt 0:00:05]} 6. d3 {[%emt 0:00:22]} b5 {[%emt 0:00:37]} 7. Bb3 {[%emt 0:00:05]} O-O {[%emt 0:00:22]} 8. c3 {[%emt 0:02:33]} d5 {[%emt 0:04:43]} 9. Nbd2 {[%emt 0:01:36]} Bb7 {[%emt 0:01:48]} 10. Re1 {[%emt 0:09:10]} dxe4 {[%emt 0:06:10]} 11. dxe4 {[%emt 0:00:54]} Bc5 {[%emt 0:00:45]} 12. h3 {[%emt 0:01:58]} Qe7 {[%emt 0:11:11]} 13. Nf1 {[%emt 0:03:06]} Rad8 {[%emt 0:04:56]} 14. Qe2 {[%emt 0:00:26]} Na5 {[%emt 0:07:26]} 15. Bc2 {[%emt 0:01:38]} Nc4 {[%emt 0:00:43]} 16. Ng3 {[%emt 0:02:05]} Qe6 {[%emt 0:02:14]} 17. a4 {[%emt 0:06:37]} Rfe8 {[%emt 0:03:49]} 18. Nf5 {[%emt 0:08:42]} Qc6 {[%emt 0:13:35]} 19. axb5 {[%emt 0:05:09]} axb5 {[%emt 0:00:18]} 20. Bg5 {[%emt 0:00:30]} Nxb2 {[%emt 0:04:15]} 21. Bxf6 {[%emt 0:00:30]} Qxf6 {[%emt 0:04:02]} 22. Reb1 {[%emt 0:00:03]} Nc4 {[%emt 0:09:01]} 23. Rxb5 {[%emt 0:00:07]} Qc6 {[%emt 0:00:15]} 24. Rxb7 {[%emt 0:00:05]} Qxb7 {[%emt 0:00:21]} 25. Qxc4 {[%emt 0:00:05]} Qb2 {[%emt 0:00:23]} 26. Rf1 {[%emt 0:00:58]} Qxc2 {[%emt 0:01:01]} 27. Qxc5 {[%emt 0:00:08]} Qxe4 {[%emt 0:00:14]} 28. Ne7+ {[%emt 0:00:32]} Kh8 {[%emt 0:02:47]} 29. Nxe5 {[%emt 0:00:05]} Qf4 {[%emt 0:01:10]} 30. Qxc7 {[%emt 0:01:59]} Qf6 {[%emt 0:00:09]} 31. N7c6 {[%emt 0:00:13]} Rc8 {[%emt 0:01:29]} 32. Qxf7 {[%emt 0:00:19]} Rxe5 {[%emt 0:00:14]} 33. Qxf6 {[%emt 0:00:06]} gxf6 {[%emt 0:00:02]} 34. Nxe5 {[%emt 0:00:06]} fxe5 {[%emt 0:00:01]} 35. Re1 {[%emt 0:00:18]} Rc5 {[%emt 0:00:04]} 36. Re4 {[%emt 0:00:08]} Kg7 {[%emt 0:00:05]} 37. c4 {[%emt 0:00:04]} Kf6 {[%emt 0:00:03]} 38. f4 {[%emt 0:01:04]} exf4 {[%emt 0:02:17]} 39. Rxf4+ {[%emt 0:00:07]} Kg5 {[%emt 0:01:43]} 40. Rd4 {[%emt 0:00:00]} Rf5 {[%emt 0:00:00]} 41. Rd5 {[%emt 0:15:15]} Rxd5 {[%emt 0:15:12]} 42. cxd5 {[%emt 0:00:05]} Kf5 {[%emt 0:00:03]} 43. Kf2 {[%emt 0:00:12]} Ke5 {[%emt 0:00:03]} 44. Kg3 {[%emt 0:00:05]} Kxd5 {[%emt 0:00:03]} 45. Kg4 {[%emt 0:00:35]} Ke6 {[%emt 0:00:02]} 46. Kg5 {[%emt 0:00:35]} Kf7 {[%emt 0:00:04]} 47. Kh6 {[%emt 0:00:03]} Kg8 {[%emt 0:00:03]} 48. g3 {[%emt 0:00:15]} Kh8 {[%emt 0:00:03]} 49. g4 {[%emt 0:00:04]} Kg8 {[%emt 0:00:04]} 50. h4 {[%emt 0:00:09]} Kh8 {[%emt 0:00:03]} 51. g5 {[%emt 0:00:02]} Kg8 {[%emt 0:00:07]} 52. h5 {[%emt 0:00:02]} Kh8 {[%emt 0:00:11]} 53. g6 {[%emt 0:00:04]} 1-0

[Event "14th Margaryan Memorial-GM 2024"]
[Site "Yerevan"]
[Date "2024.01.12"]
[Round "5.2"]
[White "Ohanyan, Emin"]
[Black "Shahinyan, David"]
[Result "1-0"]
[ECO "C10"]
[WhiteElo "2456"]
[BlackElo "2436"]
[Annotator "RC"]
[PlyCount "41"]
[EventDate "2024.01.08"]
[EventType "tourn"]
[EventCountry "ARM"]
[SourceTitle "playchess.com"]
[Source "ChessBase"]
[SourceQuality "1"]
[TimeControl "40/5400+30:1800+30"]

1. e4 {[%emt 0:04:16]} e6 {[%emt 0:00:36]} 2. d4 {[%emt 0:00:04]} d5 {[%emt 0:00:12]} 3. Nc3 {[%emt 0:00:04]} Nf6 {[%emt 0:01:12]} 4. Bg5 {[%emt 0:01:32]} dxe4 {[%emt 0:05:43]} 5. Nxe4 {[%emt 0:00:11]} Nbd7 {[%emt 0:00:06]} 6. Nf3 {[%emt 0:00:58]} Be7 {[%emt 0:00:59]} 7. Nxf6+ {[%emt 0:06:14]} Nxf6 {[%emt 0:01:05]} 8. Bd3 {[%emt 0:01:43]} c5 {[%emt 0:01:14]} 9. dxc5 {[%emt 0:08:37]} Qa5+ {[%emt 0:01:56]} 10. c3 {[%emt 0:04:10]} Qxc5 {[%emt 0:00:46]} 11. Qe2 {[%emt 0:06:32]} Bd7 {[%emt 0:07:07]} 12. Ne5 {[%emt 0:08:46]} Bd6 {[%emt 0:13:46]} 13. f4 {[%emt 0:09:36]} Nd5 {[%emt 0:03:42]} 14. Nxd7 {[%emt 0:02:29]} Kxd7 {[%emt 0:00:21]} 15. f5 {[%emt 0:06:42]} exf5 {[%emt 0:12:24]} 16. O-O-O {[%emt 0:01:13]} Kc7 {[%emt 0:02:27]} 17. Qf3 {[%emt 0:03:31]} Rae8 {[%emt 0:12:05]} 18. Bc2 {[%emt 0:15:18]} Re5 {[%emt 0:06:49]} 19. Bb3 {[%emt 0:01:11]} h6 {[%emt 0:04:00]} 20. Rxd5 {[%emt 0:01:53]} Rxd5 {[%emt 0:09:23]} 21. Be3 {[%emt 0:00:06]} 1-0